[Event "Austrian Bundesliga 2023-24"]
[Site "Austria"]
[Date "2024.03.20"]
[Round "7.30"]
[White "Helmer, Christoph"]
[Black "Polterauer, Chiara"]
[Result "1-0"]
[ECO "C44"]
[WhiteElo "2198"]
[BlackElo "2194"]
[Annotator "RC"]
[PlyCount "125"]
[EventDate "2023.10.21"]
[EventType "team-tourn"]
[EventCountry "AUT"]
[SourceTitle "playchess.com"]
[Source "ChessBase"]
[SourceQuality "1"]
[TimeControl "40/5400+30:1800+30"]

1. e4 {[%emt 0:00:04]} e5 {[%emt 0:00:04]} 2. Nf3 {[%emt 0:00:05]} Nc6 {[%emt 0:00:05]} 3. d4 {[%emt 0:00:05]} exd4 {[%emt 0:00:11]} 4. Nxd4 {[%emt 0:00:07]} Qf6 {[%emt 0:00:28]} 5. Nf3 {[%emt 0:08:28]} Bb4+ {[%emt 0:02:09]} 6. c3 {[%emt 0:06:14]} Bc5 {[%emt 0:00:45]} 7. Be2 {[%emt 0:01:50]} d6 {[%emt 0:05:27]} 8. O-O {[%emt 0:02:35]} Nge7 {[%emt 0:00:47]} 9. Nbd2 {[%emt 0:07:06]} O-O {[%emt 0:01:32]} 10. Nc4 {[%emt 0:09:12]} h6 {[%emt 0:14:17]} 11. Be3 {[%emt 0:05:05]} Bxe3 {[%emt 0:09:05]} 12. Nxe3 {[%emt 0:00:07]} Re8 {[%emt 0:00:08]} 13. Re1 {[%emt 0:06:02]} Ne5 {[%emt 0:03:12]} 14. Nxe5 {[%emt 0:05:24]} dxe5 {[%emt 0:02:13]} 15. Bc4 {[%emt 0:06:34]} c6 {[%emt 0:02:07]} 16. a4 {[%emt 0:01:00]} Ng6 {[%emt 0:03:59]} 17. Qb3 {[%emt 0:07:51]} Rb8 {[%emt 0:09:30]} 18. Rad1 {[%emt 0:02:41]} Nf4 {[%emt 0:00:52]} 19. Rd2 {[%emt 0:04:36]} Be6 {[%emt 0:04:21]} 20. Bxe6 {[%emt 0:02:22]} Qxe6 {[%emt 0:03:25]} 21. Qd1 {[%emt 0:01:12]} Qg6 {[%emt 0:01:53]} 22. g3 {[%emt 0:09:46]} Nh3+ {[%emt 0:13:03]} 23. Kg2 {[%emt 0:00:30]} Ng5 {[%emt 0:02:27]} 24. f3 {[%emt 0:00:55]} Ne6 {[%emt 0:01:45]} 25. Nf5 {[%emt 0:00:30]} Kh7 {[%emt 0:01:22]} 26. Qc2 {[%emt 0:03:41]} Red8 {[%emt 0:05:52]} 27. Red1 {[%emt 0:00:40]} Rxd2+ {[%emt 0:00:06]} 28. Rxd2 {[%emt 0:00:08]} Qf6 {[%emt 0:01:17]} 29. Qd1 {[%emt 0:03:09]} Rd8 {[%emt 0:01:10]} 30. b4 {[%emt 0:02:26]} Rxd2+ {[%emt 0:04:08]} 31. Qxd2 {[%emt 0:00:24]} Qd8 {[%emt 0:01:15]} 32. Qd6 {[%emt 0:01:26]} Qg5 {[%emt 0:03:18]} 33. Qd1 {[%emt 0:01:27]} g6 {[%emt 0:00:30]} 34. h4 {[%emt 0:00:19]} Qf6 {[%emt 0:00:38]} 35. Ne3 {[%emt 0:00:13]} Qd8 {[%emt 0:00:59]} 36. Qxd8 {[%emt 0:00:35]} Nxd8 {[%emt 0:00:04]} 37. Ng4 {[%emt 0:00:11]} Kg7 {[%emt 0:01:17]} 38. Nxe5 {[%emt 0:00:07]} Ne6 {[%emt 0:00:48]} 39. Nd3 {[%emt 0:01:38]} b6 {[%emt 0:00:32]} 40. Ne5 {[%emt 0:00:00]} Nd8 {[%emt 0:00:00]} 41. Kf2 {[%emt 0:02:22]} Kf8 {[%emt 0:03:49]} 42. Ke3 {[%emt 0:01:00]} Ke7 {[%emt 0:00:12]} 43. f4 {[%emt 0:01:22]} h5 {[%emt 0:00:54]} 44. f5 {[%emt 0:04:46]} gxf5 {[%emt 0:07:01]} 45. exf5 {[%emt 0:00:17]} Kd6 {[%emt 0:00:18]} 46. Ke4 {[%emt 0:01:59]} b5 {[%emt 0:02:48]} 47. axb5 {[%emt 0:02:21]} cxb5 {[%emt 0:00:05]} 48. Nd3 {[%emt 0:00:27]} Nc6 {[%emt 0:04:30]} 49. Nf4 {[%emt 0:00:23]} a5 {[%emt 0:00:05]} 50. bxa5 {[%emt 0:00:08]} Nxa5 {[%emt 0:00:03]} 51. Nxh5 {[%emt 0:00:11]} Nb3 {[%emt 0:00:15]} 52. Nf4 {[%emt 0:03:12]} Nd2+ {[%emt 0:00:39]} 53. Kd4 {[%emt 0:04:21]} Nf1 {[%emt 0:03:22]} 54. Ne2 {[%emt 0:01:37]} Nh2 {[%emt 0:02:49]} 55. Ke4 {[%emt 0:02:32]} Ng4 {[%emt 0:00:56]} 56. Kf4 {[%emt 0:01:15]} Nf6 {[%emt 0:00:03]} 57. g4 {[%emt 0:01:37]} Nd5+ {[%emt 0:00:44]} 58. Ke4 {[%emt 0:01:15]} Nf6+ {[%emt 0:01:01]} 59. Kf3 {[%emt 0:00:13]} Nd5 {[%emt 0:00:05]} 60. h5 {[%emt 0:01:17]} Ke5 {[%emt 0:01:59]} 61. h6 {[%emt 0:00:28]} Kf6 {[%emt 0:00:32]} 62. Nf4 {[%emt 0:02:19]} Nxc3 {[%emt 0:02:05]} 63. Nh5+ {[%emt 0:00:06]} 1-0

[Event "Austrian Bundesliga 2023-24"]
[Site "Austria"]
[Date "2024.03.20"]
[Round "7.31"]
[White "Brkic, Ante"]
[Black "Markus, Robert"]
[Result "1/2-1/2"]
[ECO "C41"]
[WhiteElo "2633"]
[BlackElo "2595"]
[Annotator "TA"]
[PlyCount "117"]
[EventDate "2023.10.21"]
[EventType "team-tourn"]
[EventCountry "AUT"]
[SourceTitle "playchess.com"]
[Source "ChessBase"]
[SourceQuality "1"]
[TimeControl "40/5400+30:1800+30"]

{[%evp 12,117,49,23,41,31,38,29,49,21,30,27,38,44,44,38,50,57,60,42,35,22,31,34,50,42,64,48,72,61,68,58,58,58,65,58,63,58,86,77,113,101,153,129,136,43,39,24,30,41,24,35,78,79,72,72,72,72,72,72,89,83,100,81,106,106,198,106,147,85,78,63,67,58,70,70,121,70,71,71,78,78,127,114,135,135,135,135,135,135,135,95,127,95,127,95,127,95,95,95,95,95,95,95,95,65,66,87]} 1. e4 {[%emt 0:00:02]} d6 {[%emt 0:00:06]} 2. d4 {[%emt 0:00:12]} Nf6 {[%emt 0:00:09]} 3. Nc3 {[%emt 0:00:04]} e5 {[%emt 0:00:09]} 4. Nf3 {[%emt 0:00:17]} Nbd7 {[%emt 0:00:09]} 5. Bc4 {[%emt 0:00:17]} Be7 {[%emt 0:00:09]} 6. a4 {[%emt 0:00:37]} O-O {[%emt 0:00:10]} 7. O-O {[%emt 0:00:51]} exd4 {[%emt 0:00:38]} 8. Nxd4 {[%emt 0:00:12]} Re8 {[%emt 0:00:09]} 9. Re1 {[%emt 0:03:24]} h6 {[%emt 0:03:24] Weiß hat minimalen Vorteil.} 10. h3 {[%emt 0:03:20]} Bf8 {[%emt 0:01:11]} 11. a5 {[%emt 0:11:43]} c6 {[%emt 0:08:26]} 12. Bf4 {[%emt 0:09:34]} Qc7 {[%emt 0:08:34]} 13. Bh2 {[%emt 0:06:03]} b5 {[%emt 0:13:48]} 14. axb6 {[%emt 0:01:13]} Qxb6 {[%emt 0:00:06]} 15. Nf5 {[%emt 0:13:03]} (15. Na4 {vereinfacht} Qc7 16. Bd3 Bb7 17. Re3) 15... Ne5 {[%emt 0:06:09]} 16. Bxe5 {[%emt 0:00:44]} (16. Nxd6 $2 {verliert.} Bxd6 17. Bxf7+ Nxf7 $19) 16... dxe5 {[%emt 0:00:12]} 17. Qf3 {[%emt 0:00:33][%cal Of5h6]} Bxf5 {[%emt 0:03:43]} 18. exf5 {[%emt 0:00:29]} a5 {[%emt 0:17:20] Schwarz ist schwach auf den weissen Feldern} 19. b3 {[%emt 0:08:21]} Rad8 {[%emt 0:04:25]} 20. Ne4 {[%emt 0:01:10] Lässt Rd2 nicht zu} Be7 {[%emt 0:00:32]} 21. c3 {[%emt 0:08:35]} Rd7 {[%emt 0:03:06]} 22. h4 {[%emt 0:02:07]} Red8 {[%emt 0:03:14]} 23. g3 {[%emt 0:01:54]} Qc7 {[%emt 0:03:41]} 24. Kg2 {[%emt 0:06:26] Weiß steht aktiver.} Kf8 {[%emt 0:03:43]} 25. Ra2 {[%emt 0:03:42]} Nxe4 {[%emt 0:05:24]} 26. Rxe4 {[%emt 0:00:41] Droht Qh5 und aus.} Bf6 {[%emt 0:01:02] [#]} (26... Rd2 $142 27. Rxd2 Rxd2) 27. Qh5 $1 $16 {[%emt 0:06:55] Droht stark g4.} Rd2 {[%emt 0:00:44]} 28. Rxd2 {[%emt 0:00:57]} (28. Rxa5 $1 $16 {Und b4 würde nun gewinnen.} Rc2 29. Re3) 28... Rxd2 $14 {[%emt 0:00:06]} 29. g4 {[%emt 0:02:14] g5 ist eine echte Drohung.} Qa7 {[%emt 0:00:55]} 30. Re2 {[%emt 0:01:07]} Rxe2 {[%emt 0:01:17]} 31. Bxe2 {[%emt 0:00:01][%mdl 4096] Endspiel. KQB-KQB} e4 {[%emt 0:03:01]} 32. g5 $36 {[%emt 0:00:22][%mdl 2048] Schwarz steht unter starkem Druck.} Bxc3 {[%emt 0:03:31]} 33. gxh6 {[%emt 0:04:11]} gxh6 {[%emt 0:01:39]} 34. Qxh6+ {[%emt 0:00:11]} Ke7 {[%emt 0:01:01]} 35. Qxc6 {[%emt 0:00:31]} Bd4 {[%emt 0:01:41]} 36. Bc4 {[%emt 0:00:52]} Qd7 {[%emt 0:00:25]} 37. Qxe4+ {[%emt 0:00:54]} Kf6 {[%emt 0:01:14]} 38. h5 {[%emt 0:03:42][%cal Bh4h5,Bh5h6][%mdl 32] Und jetzt h6 wäre schön.} Kg7 {[%emt 0:02:34]} (38... Ba1 $16 {ist wohl besser.}) 39. Qh4 {[%emt 0:01:22]} (39. Qg4+ $18 Kh7 40. Bxf7 Qxf7 41. Qxd4 Qxf5 42. f4) 39... Qc6+ {[%emt 0:00:37]} 40. Kf1 {[%emt 0:00:00]} (40. Kg1 $142 Qf6 41. h6+ Kh7 42. Qxf6 Bxf6 43. Bxf7) 40... Bf6 {[%emt 0:00:00]} 41. h6+ {[%emt 0:03:01]} (41. Qg3+ {vereinfacht} Kf8 42. Qg2 Qxg2+ 43. Kxg2 Kg7 44. Kf1) 41... Kh8 {[%emt 0:07:03]} 42. Qf4 {[%emt 0:14:03]} (42. Qg4 {vereinfacht} Qb7 43. Qg2 Qxg2+ 44. Kxg2 Kh7 45. Bxf7 Bg5 46. Kf3) 42... Qd7 {[%emt 0:03:00]} 43. Qf3 {[%emt 0:02:12]} Qd2 {[%emt 0:04:30]} ({Vorzuziehen ist} 43... Qc7 $14) 44. Qe4 {[%emt 0:03:30]} ({Günstiger ist} 44. Bxf7 $16 {Qg3 wäre nun fies.} Qc1+ 45. Kg2 Qg5+ 46. Qg3) 44... Qd7 {[%emt 0:04:20]} 45. Qa8+ {[%emt 0:05:16]} Kh7 {[%emt 0:04:53]} 46. Qxa5 {[%emt 0:00:32]} Qd1+ {[%emt 0:00:04]} (46... Kxh6 $142 47. Qd5 Qxd5 48. Bxd5 Kg5) 47. Qe1 $16 {[%emt 0:00:12]} Qxe1+ {[%emt 0:00:05]} 48. Kxe1 {[%emt 0:00:03] KB-KB} Bc3+ {[%emt 0:00:05]} 49. Ke2 {[%emt 0:00:11]} f6 {[%emt 0:00:05]} 50. Kd3 {[%emt 0:00:36]} Be1 {[%emt 0:00:05]} 51. Be6 {[%emt 0:04:31]} Kxh6 {[%emt 0:00:17]} 52. Kc4 {[%emt 0:00:05]} Kg7 {[%emt 0:00:38]} 53. b4 {[%emt 0:00:05][%cal Bb3b4,Bb4b5,Bb5b6,Bb6b7][%mdl 32]} Kf8 {[%emt 0:00:18]} 54. b5 {[%emt 0:00:05]} Bxf2 {[%emt 0:01:20]} 55. Kd5 {[%emt 0:00:03]} Ke7 {[%emt 0:00:05]} 56. Kc6 {[%emt 0:00:03]} Kd8 {[%emt 0:00:10]} 57. b6 {[%emt 0:00:04]} Be3 {[%emt 0:00:18]} 58. b7 {[%emt 0:00:53]} Bf4 {[%emt 0:00:09]} 59. Bd5 {[%emt 0:00:03] Gewichteter Fehlerwert: Weiß=0.14 (sehr präzise) /Schwarz=0.16 (sehr präzise) .  Fehler:       	Weiß=4     	Schwarz=4     Ungenau:       	Weiß=2     	Schwarz=7     OK:         	Weiß=14    	Schwarz=11    Bester:       	Weiß=7     	Schwarz=5     Stark:        	Weiß=1     	---} 1/2-1/2

[Event "Austrian Bundesliga 2023-24"]
[Site "Austria"]
[Date "2024.03.20"]
[Round "7.32"]
[White "Horvath, Dominik"]
[Black "Martinovic, Sasa"]
[Result "1-0"]
[ECO "A46"]
[WhiteElo "2534"]
[BlackElo "2558"]
[Annotator "TA"]
[PlyCount "65"]
[EventDate "2023.10.21"]
[EventType "team-tourn"]
[EventCountry "AUT"]
[SourceTitle "playchess.com"]
[Source "ChessBase"]
[SourceQuality "1"]
[TimeControl "40/5400+30:1800+30"]

{[%evp 9,65,0,10,13,24,0,0,0,0,21,41,45,30,38,30,28,51,45,52,79,35,54,104,111,154,155,158,152,171,164,158,150,147,140,149,151,252,262,263,243,252,249,399,372,503,491,581,553,1228,1224,1233,1228,1203,1200,1235,1217,1427,938]} 1. d4 {[%emt 0:00:17]} Nf6 {[%emt 0:00:04]} 2. Nf3 {[%emt 0:00:30]} d5 {[%emt 0:00:05]} 3. c3 {[%emt 0:01:27]} Bf5 {[%emt 0:00:13]} 4. Qb3 {[%emt 0:00:08]} Qc8 {[%emt 0:00:13]} 5. Bf4 {[%emt 0:00:06]} c5 {[%emt 0:00:51][%cal Bc7c5,Bc5c4][%mdl 32]} 6. Nbd2 {[%emt 0:02:04]} c4 {[%emt 0:01:05]} 7. Qd1 {[%emt 0:00:05]} Nc6 {[%emt 0:03:29]} 8. g3 {[%emt 0:00:09] The position is equal.} h6 {[%emt 0:01:46]} 9. Bg2 {[%emt 0:09:34]} g5 {[%emt 0:00:59]} 10. Be5 {[%emt 0:08:03]} Bg7 {[%emt 0:00:47]} 11. O-O {[%emt 0:01:27]} O-O {[%emt 0:02:10]} 12. Bxf6 {[%emt 0:12:32]} Bxf6 {[%emt 0:00:05]} 13. Re1 {[%emt 0:00:17]} Rd8 {[%emt 0:20:56]} 14. e4 {[%emt 0:00:40]} dxe4 {[%emt 0:00:11]} 15. Nxe4 {[%emt 0:00:06]} Bxe4 {[%emt 0:18:14] White leaves nothing to chance now.} (15... Bg7 $14) 16. Rxe4 $16 {[%emt 0:00:08]} Qf5 {[%emt 0:00:15]} 17. Qe2 {[%emt 0:02:25]} Rac8 {[%emt 0:05:26]} 18. Re1 {[%emt 0:03:06]} b5 {[%emt 0:03:22] [#]} 19. h4 $1 {[%emt 0:09:40]} e6 {[%emt 0:03:08]} 20. Nh2 {[%emt 0:01:55]} Bg7 {[%emt 0:09:10]} 21. hxg5 {[%emt 0:01:21]} hxg5 {[%emt 0:04:02]} 22. Rg4 {[%emt 0:05:07][%cal Be4g4,Bg4g5,Bg5f5][%mdl 32] Qe3 is the strong threat.} e5 {[%emt 0:06:19]} (22... Qd3 $16 {was necessary.}) 23. Be4 $18 {[%emt 0:00:08]} Qf6 {[%emt 0:01:54]} 24. d5 {[%emt 0:00:58]} Ne7 {[%emt 0:00:38][%cal Of6h6]} 25. Nf3 {[%emt 0:00:12]} Qh6 {[%emt 0:05:50]} (25... Nxd5 $142 26. Rxg5 (26. Nxg5 Qe7 $18) 26... b4 27. cxb4 (27. Rxe5 bxc3 28. Rf5 cxb2 $18) 27... c3) 26. Rxg5 {[%emt 0:02:36]} (26. Nxg5 f5 $16) 26... f6 {[%emt 0:00:57] [#]} 27. Rf5 {[%emt 0:01:52][%mdl 512] White is clearly winning.} Nxd5 {[%emt 0:07:12]} (27... Nxf5 28. Bxf5) 28. Kg2 {[%emt 0:01:48]} Bf8 {[%emt 0:03:07]} 29. Rh1 {[%emt 0:04:04]} Qg7 {[%emt 0:00:03]} 30. Bxd5+ {[%emt 0:01:26]} Rxd5 {[%emt 0:00:06]} 31. Qe4 {[%emt 0:00:09]} Rcd8 {[%emt 0:02:41]} 32. Rh4 {[%emt 0:01:40]} Qe7 {[%emt 0:00:38] [#]} 33. Rxf6 $3 {[%emt 0:00:19][%mdl 512] Weighted Error Value: White=0.03 (flawless) /Black=0.35.  Mistake:       	---       	Black=3      Inaccurate:     	---       	Black=3      OK:         	White=12    	Black=8      Best:        	White=2     	Black=1      Brilliant:      	White=1     	---} 1-0

[Event "Austrian Bundesliga 2023-24"]
[Site "Austria"]
[Date "2024.03.20"]
[Round "7.33"]
[White "Livaic, Leon"]
[Black "Samunenkov, Ihor"]
[Result "0-1"]
[ECO "A06"]
[WhiteElo "2558"]
[BlackElo "2544"]
[Annotator "TA"]
[PlyCount "77"]
[EventDate "2023.10.21"]
[EventType "team-tourn"]
[EventCountry "AUT"]
[SourceTitle "playchess.com"]
[Source "ChessBase"]
[SourceQuality "1"]
[TimeControl "40/5400+30:1800+30"]

{[%evp 37,77,-75,-88,-71,-64,-78,-92,-93,-89,-95,-95,-78,-77,-77,-31,-14,-38,-164,-172,-179,-185,-169,-171,-168,-156,-171,-152,-147,-152,-136,-139,-141,-81,-111,-93,-154,-142,-318,-312,-300,-307,-291]} 1. Nf3 {[%emt 0:00:37]} d5 {[%emt 0:00:35]} 2. e3 {[%emt 0:00:52]} Nf6 {[%emt 0:05:38]} 3. c4 {[%emt 0:00:21]} e6 {[%emt 0:00:13]} 4. Nc3 {[%emt 0:00:27]} Bd6 {[%emt 0:03:19]} 5. b3 {[%emt 0:00:35]} O-O {[%emt 0:00:15]} 6. Bb2 {[%emt 0:00:21]} c6 {[%emt 0:00:57]} 7. Qc2 {[%emt 0:01:20] A11: English Opening: 1...c6.} e5 {[%emt 0:05:50]} 8. cxd5 {[%emt 0:02:18]} cxd5 {[%emt 0:00:19]} 9. Nb5 {[%emt 0:02:12]} Nc6 {[%emt 0:01:06]} 10. Nxd6 {[%emt 0:01:08]} Qxd6 {[%emt 0:00:10]} 11. d4 {[%emt 0:19:32]} e4 {[%emt 0:24:02]} 12. Ne5 {[%emt 0:02:47]} Nb4 {[%emt 0:03:36]} 13. Qd2 {[%emt 0:02:06]} Ne8 {[%emt 0:03:17]} 14. Bc3 $146 {[%emt 0:10:26]} ({Predecessor:} 14. a3 Na6 15. f3 f6 16. Ng4 exf3 17. gxf3 Bxg4 18. fxg4 Qe6 19. Bg2 Nac7 20. h3 {0-1 Teclaf,P (2507)-Keymer,V (2591) EU-Cup Online Final rapid 2021 (7.4)}) 14... Na6 {[%emt 0:06:51]} 15. f3 {[%emt 0:03:23]} f6 {[%emt 0:05:39]} 16. fxe4 {[%emt 0:04:29]} fxe5 {[%emt 0:10:43]} 17. dxe5 {[%emt 0:00:08]} Qg6 {[%emt 0:00:16]} 18. exd5 {[%emt 0:00:24]} Nec7 {[%emt 0:01:35]} 19. d6 {[%emt 0:11:05]} (19. e6 $1 $11 {remains equal.} Nxd5 20. Qxd5 Bxe6 21. Qxe6+ (21. Qxb7 $2 Nc5 $17) 21... Qxe6 22. Bc4) 19... Ne6 $17 {[%emt 0:03:25]} 20. Bd3 {[%emt 0:14:38]} Qh6 {[%emt 0:06:40]} 21. O-O-O {[%emt 0:01:48]} Nac5 {[%emt 0:01:14]} 22. Bc2 {[%emt 0:01:16]} Bd7 {[%emt 0:00:45]} 23. Kb2 {[%emt 0:01:25]} Bc6 {[%emt 0:02:23]} 24. Qe2 {[%emt 0:03:30]} Be4 {[%emt 0:04:18]} 25. Bd4 {[%emt 0:03:01]} Qg6 {[%emt 0:02:28]} ({Black should play} 25... Bxc2 $17 26. Qxc2 Rac8) 26. Bxc5 $15 {[%emt 0:02:31]} Bxc2 $1 {[%emt 0:00:27]} 27. Rd2 {[%emt 0:00:26] [#]} ({White has to play} 27. Qxc2 $15 Qxc2+ 28. Kxc2 Nxc5 29. b4) 27... Bd3 $1 $19 {[%emt 0:04:41]} 28. Rxd3 {[%emt 0:00:42]} Nxc5 {[%emt 0:00:07]} 29. Rd5 {[%emt 0:01:06]} Nd7 {[%emt 0:00:35]} 30. Rc1 {[%emt 0:01:45]} Qe6 {[%emt 0:01:28]} 31. e4 {[%emt 0:00:33]} Nxe5 {[%emt 0:01:18]} 32. Rc7 {[%emt 0:00:34]} Qf6 {[%emt 0:01:02]} 33. Ka3 {[%emt 0:00:31]} Rad8 {[%emt 0:00:25]} 34. Qd2 {[%emt 0:03:13]} Rf7 {[%emt 0:01:12]} ({Better is} 34... b6 35. Re7 Ng6) 35. Qc3 {[%emt 0:03:07]} Nc6 {[%emt 0:00:25]} (35... Rxd6 $6 36. Rc8+ Rf8 37. Rxe5 (37. Rxf8+ $2 Qxf8 38. Rxd6 Qxd6+ $19) 37... Ra6+ 38. Kb2 Qf2+ 39. Qc2 Qd4+ 40. Qc3 Qxc3+ 41. Rxc3 Rf2+ 42. Kb1 $15) 36. Qc4 {[%emt 0:02:38] [#]} (36. Qxf6 $142 gxf6 37. d7) 36... Qe6 $1 $17 {[%emt 0:00:14]} (36... Rxd6 $2 37. Rxf7 Ne5 38. Rxf6 $18 (38. Rxe5 Ra6+ 39. Kb4 Qd6+ 40. Rc5 Qd2+ 41. Qc3 Rb6+ 42. Kc4 Qxc3+ 43. Kxc3 Kxf7 $18)) 37. Qb5 $2 {[%emt 0:00:52]} (37. Kb2 $17) 37... Rxc7 $19 {[%emt 0:00:55]} (37... Qxe4 38. Rxf7 Kxf7 39. Qxb7+ Ke6 40. Rc5 Kxd6 (40... Rxd6 $2 41. g4 $19) 41. Rc1 $17) 38. dxc7 {[%emt 0:00:01]} Qe7+ {[%emt 0:00:18]} (38... Qxe4 39. Rxd8+ (39. cxd8=R+ Nxd8 40. Rxd8+ Kf7 $18) 39... Kf7 40. Qh5+ (40. c8=Q Nxd8 41. Qxd8 Qe7+ 42. Qxe7+ Kxe7 43. Qxb7+ Ke6 44. b4 h5 45. Qxa7 g6) 40... g6 41. Qxh7+ (41. c8=Q gxh5 42. Qxb7+ Qe7+ 43. Qxe7+ Nxe7 $18) 41... Kf6 42. c8=Q (42. Qh8+ Kg5 43. h4+ Kf4 44. Qf8+ Qf5 45. c8=Q Qxf8+ 46. Rxf8+ Ke5 47. Qxb7 Nd4) 42... Qe7+ 43. Qxe7+ Kxe7 44. Rd7+ (44. Qxb7+ Kxd8 45. Qxc6 Ke7 46. Qxg6 a5 47. Ka4 Kd7 48. Kxa5 Ke7) 44... Kf6 45. Qf8+ (45. Qxb7 Ne5 46. Rd6+ Kf5 47. Qe7 Kf4 48. Rd4+ Ke3 49. Qxe5+ Kf2 50. Qg3+ Kf1 51. Rd1+ Ke2 52. Qf3#) 45... Ke5 46. Qe8+ (46. Rxb7 a6 47. Qc5+ Kf4 48. Qxc6 Ke3 49. Re7+ Kf2 50. Qf3+ Kg1 51. Re1+ Kxh2 52. Qh3#) 46... Kf5 47. Rf7+ (47. Rxb7 Nd4 48. Rf7+ Kg4 49. Qe4+ Kh5 50. g4+ Kh4 51. Rh7+ Kg5 52. h4+ Kf6 53. g5#) (47. Rd5+ Kf6 48. Rd6+ Kf5 49. Re6 Ne5 50. Rxe5+ Kf4 51. Qe7 Kg4 52. Qg5#) 47... Kg5 48. Qe4 (48. Rxb7 Nd4 49. Qd8+ Kf5 50. Qxd4 Ke6 51. g4 g5 52. Rd7 a6 53. Qd6#) 48... Kh5 49. g3 Kh6 50. Qh4#) 39. b4 {[%emt 0:00:28]} 0-1

[Event "Austrian Bundesliga 2023-24"]
[Site "Austria"]
[Date "2024.03.20"]
[Round "7.34"]
[White "Korpa, Bence"]
[Black "Bosiocic, Marin"]
[Result "0-1"]
[ECO "A06"]
[WhiteElo "2545"]
[BlackElo "2549"]
[Annotator "TA"]
[PlyCount "58"]
[EventDate "2023.10.21"]
[EventType "team-tourn"]
[EventCountry "AUT"]
[SourceTitle "playchess.com"]
[Source "ChessBase"]
[SourceQuality "1"]
[TimeControl "40/5400+30:1800+30"]

{[%evp 14,58,15,13,15,6,15,4,12,0,8,-8,-16,-33,-24,-34,-36,-46,-30,-43,20,9,41,55,27,43,164,0,0,-37,0,0,0,-264,-289,-277,-272,-455,-455,-729,-452,-456,-456,-456,-451,-486,-450]} 1. Nf3 {[%emt 0:00:07]} d5 {[%emt 0:00:17]} 2. e3 {[%emt 0:00:15]} c5 {[%emt 0:03:17]} 3. b3 {[%emt 0:00:28]} Nc6 {[%emt 0:01:31]} 4. Bb2 {[%emt 0:01:53]} Nf6 {[%emt 0:02:32]} 5. Bb5 {[%emt 0:11:20]} Bd7 {[%emt 0:01:34]} 6. O-O {[%emt 0:02:34]} a6 {[%emt 0:00:46] A06: Réti Opening: 1 Nf3 d5.} 7. Bxc6 {[%emt 0:00:58]} Bxc6 {[%emt 0:00:39]} 8. Ne5 {[%emt 0:00:21]} Rc8 {[%emt 0:00:00]} 9. d3 {[%emt 0:04:31]} e6 {[%emt 0:01:12]} 10. Nd2 {[%emt 0:00:10]} Be7 {[%emt 0:01:51]} 11. a4 {[%emt 0:04:55]} O-O {[%emt 0:02:04]} 12. f4 {[%emt 0:07:29]} Be8 {[%emt 0:09:30]} 13. f5 $146 {[%emt 0:08:21]} ({Predecessor:} 13. a5 Kh8 14. Qe2 Nd7 15. c4 Nb8 16. cxd5 exd5 17. e4 f6 18. Nef3 Nc6 19. Nh4 dxe4 20. dxe4 {0-1 Simagin,V-Taimanov,M URS-ch20 Final 1952 (9)}) 13... exf5 {[%emt 0:02:14]} 14. Rxf5 {[%emt 0:00:09]} d4 {[%emt 0:01:41]} 15. a5 {[%emt 0:13:17]} Nd5 $1 {[%emt 0:05:21]} 16. Nec4 {[%emt 0:01:32]} Rc6 {[%emt 0:12:47]} (16... Nxe3 $15 17. Nxe3 dxe3) 17. exd4 $11 {[%emt 0:03:29]} Rg6 {[%emt 0:09:42]} 18. Qf3 {[%emt 0:10:36]} Bc6 {[%emt 0:00:15]} 19. Ne5 {[%emt 0:01:09]} Bg5 {[%emt 0:10:37] [#]} (19... Nb4 $14 20. Nxc6 bxc6) 20. Nf1 $2 {[%emt 0:13:05]} (20. Nxf7 $2 Rxf7 21. Ne4 Rxf5 22. Qxf5 Be3+ 23. Kh1 Nf4 $19 (23... Bxd4 $2 24. Bxd4 cxd4 25. c3 $19) (23... cxd4 $2 24. Rf1 $19)) ({White should try} 20. Ne4 $1 $18 f6 (20... Be3+ $2 21. Kh1 $16) 21. Nxg6 hxg6 22. Rxg5 fxg5 23. Qg4) 20... cxd4 $11 {[%emt 0:04:27]} 21. Ba3 {[%emt 0:04:32]} (21. Nxg6 hxg6 22. Rxd5 (22. Rxg5 Qxg5 23. Qg3 Qf5 $17) 22... Bxd5 $17) (21. Bxd4 Ne7 22. Nxc6 bxc6 $17) (21. Rxf7 $5 Re8 (21... Rf6 22. Nxc6 bxc6 23. Rxf6 $14) 22. Nxc6 (22. Nxg6 Nf4 $17) (22. Bxd4 $2 Rxe5 $19) 22... bxc6 23. Rf5 $17 (23. Bxd4 Bf6 $17)) 21... Be3+ {[%emt 0:10:33]} (21... Re8 $5 22. Nxf7 Ne3 $11 (22... Qxa5 23. Nh6+ gxh6 24. Rf8+ Rxf8 25. Qxf8#) (22... Nf4 23. Qxc6 Ne2+ 24. Kh1 $11)) 22. Kh1 $1 {[%emt 0:01:21]} Re8 $1 {[%emt 0:01:17]} 23. Nxf7 $2 {[%emt 0:05:38][%mdl 8192]} (23. Rxf7 $11 {and White is okay.} Nf6 24. Nxc6 bxc6 25. Ra7) 23... Qc8 $19 {[%emt 0:05:28]} (23... Qxa5 24. Nh6+ gxh6 25. Rf8+ Rxf8 26. Qxf8#) 24. Rxd5 {[%emt 0:01:53]} ({Reject} 24. Nd6 Rxd6 25. Bxd6 Ne7 $19 (25... Nf4 $2 26. Rxf4 Bxf3 27. Rxf3 $19)) 24... Qe6 {[%emt 0:02:19]} ({Don't play} 24... Rf6 25. Nd6 Rxf3 26. Nxc8 Bxd5 27. Ne7+ (27. gxf3 $2 Bxf3#) (27. Nb6 $2 Bc6 $19) 27... Rxe7 28. Bxe7 $19) 25. Nxe3 $2 {[%emt 0:02:01]} (25. c4 Bxd5 (25... Qxf7 $2 26. Qxf7+ Kxf7 27. Bc5 $19) 26. cxd5 Qxf7 27. Qxf7+ Kxf7 28. Ng3) 25... dxe3 $19 {[%emt 0:00:41]} 26. c4 {[%emt 0:00:54]} (26. Nd8 $142 Qxd5 27. Nxc6 Qxf3 (27... bxc6 $2 28. Qxd5+ cxd5 29. Bc5 $19) (27... Qxc6 $2 28. Qxc6 Rxc6 29. d4 $19) 28. gxf3 Rxc6 (28... bxc6 $2 29. Bb4 $19) 29. Re1 Rxc2 30. Bd6) 26... Bxd5 {[%emt 0:00:39]} 27. cxd5 {[%emt 0:00:07]} Qxf7 {[%emt 0:00:10]} 28. Qxf7+ {[%emt 0:00:43]} Kxf7 {[%emt 0:00:05]} 29. Re1 {[%emt 0:00:11]} Rg5 {[%emt 0:00:23]} 0-1